Cogmind - Beta 16 @@@ ROGUE MODE // 2025.12.24 @ 01:39:03 Player: AngelSpirit Result: Destroyed by OC-7OJ(R) with Subdweller Laser Performance ------------- Evolutions (0) 0 Regions Visited (2) 400 Robots Destroyed (22) 110 Value Destroyed (425) 425 Prototype IDs (0) 0 Alien Tech Used (0) 0 Bonus (0) 0 TOTAL SCORE: 935 Bonus ------- None Cogmind --------- Core Integrity 0/250 Matter 172/300 Energy 250/250 System Corruption 1% Temperature Cool (6) Movement Rolling (90) Location -10/Subcaves Parts ------- > --- POWER (1) -------- Ion Engine > --- PROPULSION (2) --- Wheel Compact Wheel > --- UTILITY (2) ------ Medium Storage Unit Seismic Detector > --- WEAPON (2) ------- Light Cannon Light Cannon > --- INVENTORY (10) --- Wheel Wheel Wheel High-capacity Matter Pod (200) Sensor Array Light Cannon Light Cannon Light Cannon Peak State ------------ > --- POWER ------------ Ion Engine > --- PROPULSION ------- Wheel Compact Wheel > --- UTILITY ---------- Medium Storage Unit Backup Plating I > --- WEAPON ----------- Light Cannon Light Cannon > --- INVENTORY -------- Ion Engine Wheel Wheel Wheel High-capacity Matter Pod Sensor Array EM Pulse Gun Light Cannon Light Cannon Light Cannon [Rating: 8] Favorites ----------- Power Ion Engine Engine Ion Engine Propulsion Wheel Wheel Wheel Utility Medium Storage Unit Device Seismic Detector Storage Medium Storage Unit Protection Backup Plating I Weapon Light Cannon Energy Gun Medium Laser Ballistic Gun Assault Rifle Ballistic Cannon Light Cannon Build | -11 -10 -10 ------- Run | Yrd Mat Sub Slots Evolved . | . . . Power . | . . . Propulsion . | . . . Utility . | . . . Weapon . | . . . Parts Attached 21 | 6 13 2 Power 3 | 1 1 1 Engine 3 | 1 1 1 Core . | . . . Reactor . | . . . Propulsion 5 | 2 3 . Treads . | . . . Leg . | . . . Wheel 5 | 2 3 . Hover . | . . . Flight . | . . . Utility 5 | 1 3 1 Device 1 | . . 1 Storage 2 | 1 1 . Processor . | . . . Hackware . | . . . Protection 2 | . 2 . Artifact . | . . . Weapon 8 | 2 6 . Energy Gun 3 | 1 2 . Energy Cannon . | . . . Ballistic Gun 3 | 1 2 . Ballistic Cannon 2 | . 2 . Launcher . | . . . Special Weapon . | . . . Impact Weapon . | . . . Slashing Weapon . | . . . Piercing Weapon . | . . . Special Melee Weapon . | . . . Unidentified Prototypes . | . . . Parts Lost 6 | . 4 2 Power 1 | . . 1 Propulsion 3 | . 3 . Utility 1 | . . 1 Weapon 1 | . 1 . Highest Loss Streak 3 | . 3 2 To Critical Strikes . | . . . Average Backups 5 | . 4 9 Power . | . . . Propulsion 1 | . 1 3 Utility 1 | . 1 2 Weapon 1 | . 1 3 Tool/Special . | . . . Unused Backups 6 | . . 6 Power . | . . . Propulsion 1 | . . 1 Utility 2 | . . 2 Weapon 3 | . . 3 Tool/Special . | . . . Average Slot Usage (%) 95 | . 94 97 Engine 13 | . 14 12 Wheel 27 | . 27 28 Device 2 | . . 11 Storage 14 | . 14 14 Protection 7 | . 9 1 Energy Gun 11 | . 15 . Ballistic Gun 3 | . 4 . Ballistic Cannon 12 | . 7 28 Peak Build Rating 8 | 6 8 8 Average Rating 6 | 4 6 7 On Entrance 4 | . 6 8 Avg Prop Armor Cover (%) . | . . . Naked Turns . | . . . Heaviest Build 22 | 14 22 22 Greatest Support 26 | 20 26 26 Greatest Overweight (x) 1 | . 1 . Average Overweight (x) . | . . . Largest Inventory Capacity 10 | 8 10 10 Average Capacity 9 | 7 9 10 Most Carried 10 | . 10 10 Average Carried 5 | . 4 8 Final Capacity 10 | 8 10 10 Final Carried 10 | . 10 8 Class Distribution -------------------- 58% | Mutant 41% | Scavenger-Mutant Dominant Class ---------------- Mutant | -10/Materials Scavenger-Mutant | -10/Subcaves Resources | -11 -10 -10 ----------- Run | Yrd Mat Sub Matter Collected 760 | 214 498 48 Remotely . | . . . Salvage Created 566 | . 519 47 Parts 40 | . 37 3 Haulers Intercepted 1 | . 1 . Recyclers Shooed 2 | . 2 . Parts Field Recycled . | . . . Retrieved Matter . | . . . Parts Self-Destructed 3 | . . 3 Prevented . | . . . Parts Restored . | . . . Kills | -11 -10 -10 ------- Run | Yrd Mat Sub Combat Hostiles Destroyed 15 | . 13 2 Guns 11 | . 11 . Cannons 4 | . 2 2 Classes Destroyed 7 | . 6 1 Worker 2 | . 2 . Hauler 1 | . 1 . Recycler 1 | . 1 . Watcher 3 | . 3 . Swarmer 7 | . 7 . Grunt 6 | . 6 . Subdweller 2 | . . 2 Best Kill Streak 3 | . 3 2 Combat Bots Only 3 | . 3 2 Max Kills in Single Turn 1 | . 1 1 Gunslinging . | . . . Exploded . | . . . Melee . | . . . Uniques/NPCs Destroyed . | . . . Combat | -11 -10 -10 -------- Run | Yrd Mat Sub Hostile Shots Fired 97 | . 79 18 Missed 19 | . 16 3 Hits 78 | . 63 15 Projectile 78 | . 63 15 AOE 3 | . . 3 Critical Strikes 1 | . . 1 Damage Taken 1055 | . 637 418 Core 252 | . 177 75 Absorbed by Shields . | . . . Core Remaining (%) 100 | 100 . . Volleys Fired 87 | . 70 17 Largest 2 | . 2 2 Hottest 90 | . 90 60 Shots Fired 168 | . 134 34 Gun 126 | . 126 . Cannon 42 | . 8 34 Launcher . | . . . Special . | . . . Kinetic 83 | . 49 34 Thermal 59 | . 59 . Explosive . | . . . Electromagnetic 26 | . 26 . Robot Hit Streak 14 | . 14 12 Robot Miss Streak 3 | . 3 2 Penetration Max . | . . . Secondary Targets 1 | . 1 . Max Gunslinging Chain 1 | . 1 . Shots Hit Robots 98 | . 76 22 Core Hits 34 | . 30 4 Critical Kills . | . . . Critical Parts Destroyed . | . . . Critical Strikes 5 | . 4 1 Burn 4 | . 4 . Blast 1 | . . 1 Melee Attacks . | . . . Impact . | . . . Slashing . | . . . Piercing . | . . . Sneak Attacks . | . . . Combat Hostiles . | . . . Follow-up Attacks . | . . . Damage Inflicted 1291 | . 963 328 Guns 914 | . 914 . Cannons 377 | . 49 328 Explosions . | . . . Melee . | . . . Ramming . | . . . Kinetic 692 | . 364 328 Thermal 420 | . 420 . Explosive . | . . . Electromagnetic 179 | . 179 . Impact . | . . . Slashing . | . . . Piercing . | . . . Highest Corruption 1 | . 1 1 Average Corruption 1 | . 1 1 Corruption Purged . | . . . Corruption Blocked . | . . . Effects 6 | . 4 2 Message Errors 2 | . 1 1 Matter Fused 2 | . 1 1 Energy Discharges 1 | . 1 . Weapon Failures 1 | . 1 . Overload Shots . | . . . Overflow Damage . | . . . Projectiles . | . . . Explosions . | . . . Melee . | . . . Knockbacks 8 | . 1 7 Impact . | . . . Kinetic 8 | . 1 7 Secondary . | . . . Self-Inflicted Damage . | . . . Shots . | . . . Rammed . | . . . Targets Rammed . | . . . Kicked . | . . . Crushed . | . . . Highest Temperature 287 | . 287 . Average Temperature 82 | . 82 . Received Heat Transfer 279 | . 255 24 Effects 2 | . 2 . Energy Bleed 2 | . 2 . Siege Activations . | . . . Martial Activations . | . . . Shielding Activations . | . . . Robots Disrupted . | . . . Combat Hostiles . | . . . Robots Corrupted . | . . . Combat Hostiles . | . . . Parts Fried . | . . . Impact Corruptions . | . . . Robots Melted . | . . . Combat Hostiles . | . . . Parts Melted 2 | . 2 . Heat Transferred 1518 | . 1518 . Parts Sabotaged . | . . . Parts Stolen . | . . . Parts Stripped . | . . . Power Chain Reactions . | . . . Alert | -11 -10 -10 ------- Run | Yrd Mat Sub Maximum Alert Level . | . . . Low Security (%) 100 | 100 100 . Level 1 . | . . . Level 2 . | . . . Level 3 . | . . . Level 4 . | . . . Level 5 . | . . . High Security . | . . . Max Security . | . . . Peak Influence 122 | . 122 . Initial . | . . . Average 62 | . 65 . Influence Increases 484 | . 484 . Destroy 0b10 Robot/C 260 | . 260 . Destroy 0b10 Robot/NC 35 | . 35 . Destroy Leader 38 | . 38 . Successful Hack 28 | . 28 . Select Force Hacks 30 | . 30 . Destroy Structure 3 | . 3 . Lose Combat Pursuer 90 | . 90 . Influence Decreases 484 | . 402 82 Entered New Map 40 | . . 40 Time Decay 402 | . 362 40 Lost Part 42 | . 40 2 Squads Dispatched 1 | . 1 . Investigation 1 | . 1 . Extermination . | . . . Reinforcement . | . . . Assault . | . . . Garrison . | . . . Intercept . | . . . Searches Triggered . | . . . Construction Impeded . | . . . Haulers Reinforced . | . . . Active Scanning Responses . | . . . Cargo Convoy Interrupts . | . . . Stealth | -11 -10 -10 --------- Run | Yrd Mat Sub Distress Signals . | . . . Communications Jammed . | . . . Distress Signals . | . . . Times Spotted 28 | . 25 3 Peak Tracking Total 4 | . 4 2 Tactical Retreats 4 | . 4 . Traps | -11 -10 -10 ------- Run | Yrd Mat Sub Traps Triggered . | . . . Indirectly . | . . . Trap Hack Attempts . | . . . Triggered . | . . . Disarmed . | . . . Reprogrammed . | . . . Reused . | . . . Traps Extracted . | . . . Installed . | . . . Triggered . | . . . Machines | -11 -10 -10 ---------- Run | Yrd Mat Sub Machines Disabled . | . . . Max in Single Turn . | . . . Machines Repaired . | . . . Machines Dismantled . | . . . Machines Sabotaged . | . . . Overloaded Fab Kills . | . . . Hacking | -11 -10 -10 --------- Run | Yrd Mat Sub Machines Accessed 7 | . 7 . Terminals 4 | . 4 . Fabricators . | . . . Repair Stations 1 | . 1 . Recycling Units 2 | . 2 . Scanalyzers . | . . . Garrison Access . | . . . Total Hacks 21 | . 21 . Successful 11 | . 11 . Failed 10 | . 10 . Catastrophic 1 | . 1 . Database Lockouts . | . . . Manual 11 | . 11 . Terminals 17 | . 17 . Fabricators . | . . . Repair Stations 2 | . 2 . Recycling Units 2 | . 2 . Scanalyzers . | . . . Garrison Access . | . . . Terminal Hacks 7 | . 7 . Part Schematic 1 | . 1 . Robot Schematic 1 | . 1 . Locate Traps 2 | . 2 . Transport Status 1 | . 1 . Hauler Manifests 1 | . 1 . Zone Layout 1 | . 1 . Fabricator Hacks . | . . . Repair Station Hacks 1 | . 1 . Refit 1 | . 1 . Recycling Unit Hacks 1 | . 1 . Retrieve Components 1 | . 1 . Scanalyzer . | . . . Garrison Access Hacks . | . . . Unauthorized Hacks 2 | . 2 . Terminals 1 | . 1 . Botnet 1 | . 1 . Fabricators . | . . . Repair Stations . | . . . Recycling Units 1 | . 1 . Tunnel 1 | . 1 . Scanalyzers . | . . . Garrison Access . | . . . Data Cores Recovered . | . . . Used . | . . . Hacking Detections 5 | . 5 . Full Trace Events 2 | . 2 . Feedback Events 1 | . 1 . Corruption 1 | . 1 . Feedback Blocked . | . . . Robot Schematics Acquired 1 | . 1 . Robots Built . | . . . Authchips . | . . . Time . | . . . Total Robot Build Rating . | . . . Part Schematics Acquired 1 | . 1 . Parts Built . | . . . Authchips . | . . . Time . | . . . Total Part Build Rating . | . . . Part Studies Acquired . | . . . Parts Repaired . | . . . Time . | . . . Parts Recycled . | . . . Recycled Matter . | . . . Retrieved Matter . | . . . Retrieved Components 3 | . 3 . Parts Scanalyzed . | . . . Part Schematics Acquired . | . . . Parts Damaged . | . . . Bothacking | -11 -10 -10 ------------ Run | Yrd Mat Sub Used RIF Installer . | . . . Robots Hacked . | . . . Non-combat . | . . . Combat . | . . . Robot Hacks Applied . | . . . Relay Couplers Released . | . . . Fabnet Peak Effective % . | . . . Robots Rewired . | . . . Allies Hacked . | . . . Hacks Repelled . | . . . Allies | -11 -10 -10 -------- Run | Yrd Mat Sub Total Allies . | . . . Largest Group . | . . . Highest-Rated Group . | . . . Highest-Rated Ally . | . . . Total Orders . | . . . Ally Attacks . | . . . Total Damage . | . . . Kills . | . . . Allies Corrupted . | . . . Allies Melted . | . . . Intel | -11 -10 -10 ------- Run | Yrd Mat Sub Active Infowar (turns) 189 | . . 189 Seismic 189 | . . 189 Robot Analysis Total . | . . . Derelict Logs Recovered . | . . . Drone Launches . | . . . Drone Recoveries . | . . . Exploration | -11 -10 -10 ------------- Run | Yrd Mat Sub Turns Passed 1109 | 37 836 236 Spaces Moved 723 | 32 529 162 Core 1 | 1 . . Treads . | . . . Legs . | . . . Wheels 722 | 31 529 162 Hover . | . . . Flight . | . . . Fastest Speed 50 | 50 80 90 Average Speed 88 | 79 88 90 Slowest Speed 115 | 80 115 90 Overloaded Moves . | . . . Propulsion Burnouts . | . . . Robots Hopped . | . . . Potential Cave-ins . | . . . Cave-ins Triggered . | . . . Exploration Rate (%) 24 | 3 64 7 Regions Visited 2 Branch Regions 1 Pre-discovered Areas 1 | . 1 . Known Exits Taken . | . . . Unknown Exits Taken 2 | 1 1 . Scrap Searched . | . . . Spaces Dug . | . . . Terrain Destroyed . | . . . Melee . | . . . Projectile . | . . . AOE . | . . . Terrain Rammed . | . . . Walls Destroyed . | . . . Machines Disabled . | . . . Actions | -11 -10 -10 --------- Run | Yrd Mat Sub Total 1018 | 40 761 217 Wait 165 | 3 128 34 Move 721 | 31 528 162 Hop . | . . . Pick Up 13 | . 13 . Fast Attach 12 | 6 6 . Attach 5 | . 3 2 Detach 1 | . 1 . Swap 6 | . 4 2 Drop 8 | . 8 . Fire 87 | . 70 17 Melee . | . . . Ram . | . . . Kick . | . . . Crush . | . . . Escape Stasis . | . . . Rewire . | . . . Trap . | . . . Miscellaneous . | . . . Route ------- -11/Scrapyard -10/Materials (discovered 4 exits: [*Mat x2] / [*Min] / [*Sub]) -10/Subcaves History --------- Turn | Location | Event 2 | -11/Scrapyard | Met Revision 17 7 | -11/Scrapyard | Discovered new exit (range 16) 38 | -11/Scrapyard | Entered Materials 217 | -10/Materials | Core integrity fell below 50% 241 | -10/Materials | Lost 3 parts (2n1w) 296 | -10/Materials | Discovered new exit (range 16) 378 | -10/Materials | Discovered new exit (range 14) 537 | -10/Materials | Discovered new exit (range 6) 638 | -10/Materials | Derelicts attacked the area 850 | -10/Materials | Discovered new exit (range 7) 874 | -10/Materials | Entered Subcaves 913 | -10/Subcaves | Ambushed by Subdwellers from Twisted Machinery 981 | -10/Subcaves | Core integrity fell below 20% 1110 | -10/Subcaves | Destroyed by OC-7OJ(R) with Subdweller Laser Last Messages --------------- LOCATION=UNKNOWN AMBIENT_HEAT=-10 GOAL=ESCAPE 00908_ System corrupted: Matter fused (-10). 00913_ RT-KNB(R) emerges from the Twisted Machinery. 00929_ AG&&SDCG|HJWRV>RM59EHAM 00952_ EZ-7PD(R) knocked back. 00967_ Backup Plating I destroyed. 00969_ Ion Engine destroyed. 00970_ EZ-7PD(R) knocked back. 00973_ EZ-7PD(R) destroyed. 00978_ RT-KNB(R) Sub. Optics blasted off. 00978_ RT-KNB(R) knocked back. 00984_ Subatomizers dissect the Sub. Optics. 00984_ RT-KNB(R) destroyed. 00994_ Acquired 44 matter. 00995_ Acquired 1 matter. 00997_ Acquired 2 matter. 01104_ OC-7OJ(R) knocked back. Map ----- +----------------------------------------------------+ | ???????????????????????????####??????????????????? | | ??????????????????????###### #??????????????????? | | ?????????????????????## ## #??????????????????? | | ????????????????????## ##?####????????????? | | ??????????###??????## ## #????????????? | | ?????????## ######## # # #????????????? | | ?????##### &&& #????????????? | | ????## ! ! ##????????????? | | ????# ### #### "#????????????? | | ????# ## #?####??## #????????????? | | ????# ### #???????# #????????????? | | ????## ### #???????##" #????????????? | | ?????# ####???????# # #????????????? | | ?????## ##?????????# ########????????????? | | ?????## #????#####?# ???????????????????? | | ?????# ##??## ### ## ???????????????????? | | ?????# #??# ###?# ??????????????????? | | ?????#"" #??# """"##?# ??????????????????? | | ????# ""## ##?## " "#? ??????????????????? | | ????# ""## #### """ ###? #?????????????????? | | ????##"""## ## " "###??? #?????????????????? | | ?????######" ""##???? ??????????????????? | | ?????##### " " " #????# ???????????????????? | | ?????# " "" " " #??????????????????????????? | | ????# """ ###" #####??????????????????????? | | ????# """""##?# " @#??????????????????????? | | ????## #####?#" ## % #??????????????????????? | | ?????###?????# ### R ##??????????????????????? | | ????????????# ##" ####???????????????????????? | | ????????????# " """ #??????????????????????????? | | ????????????# " """ #??????????????????????????? | | ????????????# " " #??????????????????????????? | | ????????????## " ??????????????????????????? | | ?????????????#" ??????????????????????????? | | ?????????????#"" ?????????????????????????? | | ???????????????" """ ?????????????????????????? | | ???????????????" """"""?????????????????????????? | | ?????????????? ### ?????????????????????????? | | ??????????????????# ### ?????????????????????????? | | ???????????????????#???#?????????????????????????? | | ?????????????????????????????????????????????????? | | ?????????????????????????????????????????????????? | | ?????????????????????????????????????????????????? | | ?????????????????????????????????????????????????? | | ?????????????????????????????????????????????????? | | ?????????????????????????????????????????????????? | | ?????????????????????????????????????????????????? | | ?????????????????????????????????????????????????? | | ?????????????????????????????????????????????????? | | ?????????????????????????????????????????????????? | +----------------------------------------------------+ Best States ------------- Heat Dissipation 25 Energy Generation 10 Energy Capacity 250 Matter Stores 300 Matter Capacity 300 Sight Range 16 Terrain Scan Density 10 Armor Coverage 80 Core Shielding 20 Evasion (%) 44 Item Schematics ----------------- Hcp. Storage Unit | -10/Materials | Hacked Robot Schematics ------------------ M-13 Machinist | -10/Materials | Hacked Fabricated ------------ Nothing Repaired ---------- Nothing Studied --------- None Alien Tech Used ----------------- None Achievements -------------- None Challenges ------------ None Game ------ Seed DeuteriumIntegrityDatajack Manual? 0 Play Time 00:13:17 Cumulative 331.2 hours Start 2025.12.24 @ 01:26:19 End 2025.12.24 @ 01:39:03 Sessions 1 Manual Loads 0 Difficulty Rogue Special Mode None Game No. 121 Rogue 121 Adventurer 0 Explorer 0 Win Type - Total 5 Types 3/0/0/0/0/0/0/1/0/1 Lore% 77 Gallery% 72 Achievement% 61 Wizard Run 0 Options --------- Layout 1 ASCII 0 Keyboard 0 Movement Mouse Keybinds 0 Fullscreen 2 Font 32/SmallcapsGlow Map View 50x35 Zoom Use 0% Tactical HUD 1 Map Filters NONE Filters NONE Steam 1 RUN: c3561a0e-7e9b-4d4b-a501-98a8edf2f9a1